{"text_format":"1","workbook":"xlsx","n_sheets":2,"sheets":["GENERAL","ITEMS"],"not_rendered":{"charts":0,"images":0,"macros":1,"external_links":0,"defined_names":0,"comments":0,"pivot_tables":0},"unopened":[],"bounds":{"document_bytes":16777216,"sheet_cells":100000,"rows_first":2000,"rows_last":500,"rows_between":2000,"halvings":0,"cell_chars":16384,"cell_head_chars":4096},"cells_cut":0,"cells_raw":0,"read":"whole","date_system":"1900"}

{"sheet":"GENERAL","index":0,"n_rows":10,"n_cols":8,"rows_kept":10,"cut":false,"hidden":false,"merged":[]}
[]
[]
[]
[]
[null,"OFFICE",2101,null,"AMOUNT",null,null,"FRIGHT"]
[null,"TYPE","IM",null,"CURRENCY",null,null,"INSURANCE"]
[null,"GEN",4,null,"TERMS",null,null,"OTHER COST"]
[]
[]
[null,null,null,null,null,"Al-Bastaki Clearing - Ebrahim Hamad - 2019"]

{"sheet":"ITEMS","index":1,"n_rows":39,"n_cols":16,"rows_kept":39,"cut":false,"hidden":false,"merged":[]}
["ITEM","HS CODE","ORIGIN","DESCRIPTION","QTY","PRICE","GROSS","NET","PKGS","TYPE","PROCEDURE","-"," ",null,null,"00:00:11"]
[{"$f":"ROW()-1","v":1},10063000,"PK","GGGGG",10,10,10,10,10,"BG",4000,"000"]
[{"$f":"ROW()-1","v":2},null,"GF","GGGG",null,null,null,null,null,null,null,""]
[3,null,null,"D",null,"HH",null,null,null,null,null,""]
[4,null,null,"GGGG",null,null,"D",null,null,null,null,""]
[5,110,null,null,10,null,null,null,null,null,10,""]
[6,110,null,null,10,null,10,null,20,null,null,""]
[7,111,"F","D",null,1,"FFFF",null,null,null,15,""]
[8,10,null,null,null,null,2,null,null,null,null,""]
[9,10,null,"S",null,null,null,3,null,null,null,""]
[10,10,"S","S",null,"S",null,null,4,null,null,""]
[11,10,"GF","S","W","S","S","S","F",null,null,""]
[12,null,null,null,"D",null,"W",null,null,null,null,""]
[13,null,"R","W",null,"S",null,null,null,10,null,""]
[14,null,"GF","S","S","D","R",null,null,"H",null,""]
[15,null,"S","S",null,null,null,null,null,null,null,""]
[17,10,null,"W","S","D",null,null,null,"H",null,""]
[null,10,"H",null,null,null,null,"S","S",null,null,""]
[null,10,null,null,null,null,10,null,null,null,null,""]
[null,10,null,"S",null,"S",null,null,null,null,null,""]
[null,10,"D","F",null,null,null,null,null,null,null,""]
[null,10,null,null,null,null,null,null,null,null,null,""]
[null,10,null,null,"F",null,null,null,null,null,null,""]
[null,10,null,null,"F",null,"D","F",null,null,null,""]
[null,10,"W","F",null,null,null,null,null,null,null,""]
[null,10,"WWW",null,null,null,null,null,null,null,null,""]
[null,10,null,null,null,null,null,null,null,null,null,""]
[null,10,"F","F"]
[null,10]
[null,10,"GF","F"]
[null,10,null,"FF"]
[null,10]
[null,10]
[null,10]
[null,10]
[null,null,null,null,{"$f":"SUBTOTAL(109,Table1[QTY])","v":30},{"$f":"SUBTOTAL(109,Table1[PRICE])","v":11},{"$f":"SUM(Table1[GROSS])","v":32},{"$f":"SUM(Table1[NET])","v":13},{"$f":"SUM(Table1[PKGS])","v":34}]
[null,null,null,null,"QTY","PRICE","GROSS","NET","PKG"]
[null,null,null,null,10,10,10,10,10]
[null,null,null,null,0,0,0,0,0]